fUST/lending_fUST_20240826
["ID","MTS","AMOUNT","RATE_DAILY","PERIOD"]
[335998249,1724657439955,-500.0,0.00012202,2]
[335998252,1724657439964,-500.0,0.00012202,2]
[335998255,1724657439974,-514.64,0.00012202,2]
[335998259,1724657439983,-500.0,0.00012202,2]
[335998261,1724657439994,-500.0,0.00012202,2]
[335998264,1724657440003,-500.0,0.00012202,2]
[335998266,1724657440012,-500.0,0.00012202,2]
[335998270,1724657440023,-150.29444621,0.00012322,2]
[335998273,1724657440033,-30000.0,0.00012376,2]
[335998276,1724657440042,-3000.0,0.00012387,2]
[335998279,1724657440052,-45854.6665427,0.00012435,2]
[335998282,1724657440062,-45854.6665427,0.00012445,2]
[335998285,1724657440072,-36511.0284614,0.00012455,2]
[335998297,1724657440128,500.0,0.00024931,60]
[335998310,1724657440186,500.0,0.00024931,60]
[335998321,1724657440241,500.0,0.00024931,60]
[335998333,1724657440295,568.49115092,0.00024931,60]
[335998365,1724657440529,-1602.38960372,0.00012081,2]
[335998367,1724657440540,-1767.77876527,0.00012455,2]
[335998370,1724657440560,-7575.85931603,0.00012455,2]
[335998372,1724657440571,-45854.6665427,0.00012456,2]
[335998374,1724657440580,-713.92,0.00012464,2]
[335998376,1724657440591,-500.0,0.00012464,2]
[335998378,1724657440601,-680.83,0.00012464,2]
[335998380,1724657440611,-500.0,0.00012464,2]
[335998382,1724657440620,-500.0,0.00012464,2]
[335998384,1724657440631,-500.0,0.00012464,2]
[335998386,1724657440641,-500.0,0.00012464,2]
[335998388,1724657440651,-500.0,0.00012464,2]
[335998390,1724657440660,-500.0,0.00012464,2]
[335998392,1724657440669,-809.92,0.00012464,2]
[335998394,1724657440679,-500.24,0.00012465,2]
[335998396,1724657440690,-500.0,0.00012465,2]
[335998399,1724657440701,-500.0,0.00012465,2]
[335998401,1724657440711,-500.0,0.00012465,2]
[335998403,1724657440721,-500.0,0.00012465,2]
[335998405,1724657440730,-550.3,0.00012465,2]
[335998407,1724657440739,-500.0,0.00012465,2]
[335998409,1724657440750,-500.0,0.00012465,2]
[335998411,1724657440762,-500.0,0.00012465,2]
[335998413,1724657440772,-545.8,0.00012465,2]
[335998415,1724657440781,-500.0,0.00012465,2]
[335998417,1724657440790,-500.0,0.00012465,2]
[335998419,1724657440800,-500.0,0.00012465,2]
[335998421,1724657440810,-500.0,0.00012465,2]
[335998423,1724657440819,-500.0,0.00012465,2]
[335998425,1724657440829,-507.79,0.00012465,2]
[335998427,1724657440838,-501.99,0.00012465,2]
[335998429,1724657440848,-500.0,0.00012465,2]
[335998431,1724657440858,-500.0,0.00012465,2]
[335998433,1724657440867,-500.0,0.00012465,2]
[335998435,1724657440877,-500.0,0.00012465,2]
[335998437,1724657440886,-500.0,0.00012465,2]
[335998438,1724657440896,-335.49880222,0.00012465,2]
[335998440,1724657440905,-521.96,0.00012465,2]
[335998442,1724657440915,-500.0,0.00012465,2]
[335998444,1724657440925,-500.0,0.00012465,2]
[335998447,1724657440935,-500.0,0.00012465,2]
[335998449,1724657440944,-500.0,0.00012465,2]
[335998451,1724657440954,-500.0,0.00012465,2]
[335998453,1724657440964,-500.0,0.00012465,2]
[335998455,1724657440974,-500.0,0.00012465,2]
[335998457,1724657440985,-787.12,0.00012465,2]
[335998459,1724657440995,-500.0,0.00012465,2]
[335998461,1724657441004,-500.0,0.00012465,2]
[335998463,1724657441014,-500.0,0.00012465,2]
[335998465,1724657441024,-500.0,0.00012465,2]
[335998467,1724657441034,-500.0,0.00012465,2]
[335998469,1724657441044,-500.0,0.00012465,2]
[335998471,1724657441053,-500.0,0.00012465,2]
[335998473,1724657441063,-500.0,0.00012465,2]
[335998475,1724657441074,-500.0,0.00012465,2]
[335998477,1724657441085,-500.0,0.00012465,2]
[335998479,1724657441095,-644.16,0.00012465,2]
[335998481,1724657441105,-500.0,0.00012465,2]
[335998483,1724657441115,-500.0,0.00012465,2]
[335998485,1724657441126,-533.91,0.00012465,2]
[335998487,1724657441136,-500.0,0.00012465,2]
[335998489,1724657441146,-500.0,0.00012465,2]
[335998491,1724657441161,-656.01,0.00012465,2]
[335998493,1724657441171,-500.0,0.00012465,2]
[335998495,1724657441181,-500.0,0.00012465,2]
[335998498,1724657441192,-500.0,0.00012465,2]
[335998500,1724657441203,-500.0,0.00012465,2]
[335998502,1724657441213,-500.0,0.00012465,2]
[335998504,1724657441223,-908.02,0.00012465,2]
[335998506,1724657441236,-500.0,0.00012465,2]
[335998508,1724657441247,-545.7698046,0.00012465,2]
[335998510,1724657441259,-500.0,0.00012465,2]
[335998513,1724657441271,-545.0532036,0.00012465,2]
[335998515,1724657441282,-500.0,0.00012465,2]
[335998517,1724657441292,-882.98,0.00012465,2]
[335998519,1724657441302,-265.89654311,0.00012465,2]
[335998521,1724657441311,-939.96,0.00012465,2]
[335998523,1724657441321,-862.46,0.00012465,2]
[335998525,1724657441331,-151.0,0.00012465,2]
[335998527,1724657441341,-172.222521,0.00012465,2]
[335998529,1724657441350,-172.222521,0.00012465,2]
[335998531,1724657441360,-151.0,0.00012466,2]
[335998533,1724657441370,-171.649858,0.00012466,2]
[335998535,1724657441380,-171.649858,0.00012466,2]
[335998537,1724657441391,-266.155314,0.00012466,2]
[335998539,1724657441401,-266.155314,0.00012466,2]
[335998541,1724657441411,-151.0,0.00012466,2]
[335998543,1724657441421,-163.827384,0.00012466,2]
[335998545,1724657441431,-151.0,0.00012466,2]
[335998547,1724657441441,-293.33251,0.00012466,2]
[335998549,1724657441451,-293.33251,0.00012466,2]
[335998551,1724657441462,-500.0,0.00012473,2]
[335998553,1724657441472,-500.0,0.00012473,2]
[335998555,1724657441482,-500.0,0.00012473,2]
[335998558,1724657441492,-500.0,0.00012473,2]
[335998560,1724657441502,-154.74467129,0.00012473,2]
[335998562,1724657441512,-500.0,0.00012476,2]
[335998564,1724657441522,-685.15,0.00012476,2]
[335998566,1724657441531,-500.0,0.00012476,2]
[335998568,1724657441541,-500.0,0.00012476,2]
[335998570,1724657441550,-571.8,0.00012476,2]
[335998572,1724657441560,-544.7424059,0.00012476,2]
[335998574,1724657441570,-500.0,0.00012476,2]
[335998576,1724657441581,-500.0,0.00012476,2]
[335998578,1724657441591,-500.0,0.00012476,2]
[335998580,1724657441602,-617.81,0.00012476,2]
[335998582,1724657441613,-561.88,0.00012476,2]
[335998585,1724657441624,-500.0,0.00012476,2]
[335998587,1724657441634,-655.23,0.00012476,2]
[335998589,1724657441644,-500.0,0.00012476,2]
[335998591,1724657441654,-500.0,0.00012476,2]
[335998593,1724657441665,-1107.15,0.00012476,2]
[335998595,1724657441674,-952.65,0.00012476,2]
[335998597,1724657441684,-500.0,0.00012476,2]
[335998599,1724657441694,-500.0,0.00012476,2]
[335998601,1724657441703,-500.0,0.00012476,2]
[335998603,1724657441713,-736.46,0.00012476,2]
[335998605,1724657441722,-544.78,0.00012476,2]
[335998607,1724657441732,-500.0,0.00012476,2]
[335998609,1724657441742,-500.0,0.00012476,2]
[335998611,1724657441751,-541.95,0.00012476,2]
[335998613,1724657441760,-151.0,0.00012476,2]
[335998615,1724657441769,-518.56,0.00012476,2]
[335998617,1724657441780,-637.21,0.00012476,2]
[335998620,1724657441791,-500.0,0.00012476,2]
[335998622,1724657441801,-500.0,0.00012476,2]
[335998624,1724657441812,-500.0,0.00012476,2]
[335998626,1724657441822,-500.0,0.00012476,2]
[335998628,1724657441831,-514.64,0.00012476,2]
[335998630,1724657441844,-500.0,0.00012476,2]
[335998632,1724657441854,-500.0,0.00012476,2]
[335998635,1724657441865,-500.0,0.00012476,2]
[335998637,1724657441874,-500.0,0.00012476,2]
[335998639,1724657441884,-290.044593,0.00012476,2]
[335998641,1724657441894,-172.222521,0.00012476,2]
[335998643,1724657441903,-172.222521,0.00012476,2]
[335998645,1724657441912,-229.549891,0.00012487,2]
[335998646,1724657441921,-229.549891,0.00012487,2]
[335998648,1724657441931,-151.0,0.00012487,2]
[335998650,1724657441940,-151.0,0.00012487,2]
[335998652,1724657441950,-151.0,0.00012487,2]
[335998654,1724657441959,-153.0,0.000125,2]
[335998656,1724657441968,-190.80297655,0.000125,2]
[335998658,1724657441978,-1613.91660303,0.00012629,2]
[335998661,1724657441988,-1056.82316829,0.00012629,2]
[335998663,1724657441997,-151.0,0.00012689,2]
[335998665,1724657442007,-171.649858,0.00012689,2]
[335998667,1724657442017,-171.649858,0.00012689,2]
[335998669,1724657442027,-266.155314,0.00012689,2]
[335998671,1724657442036,-266.155314,0.00012689,2]
[335998673,1724657442046,-465.00627444,0.00012705,2]
[335998675,1724657442055,-243.2706,0.00012708,2]
[335998677,1724657442065,-600.19421187,0.00012721,2]
[335998679,1724657442074,-1000.0,0.00012721,2]
[335998681,1724657442083,-151.0,0.00012729,2]
[335998683,1724657442093,-1720.027753,0.00012729,2]
[335998685,1724657442103,-1720.027753,0.00012729,2]
[335998687,1724657442112,-167.371446,0.00012729,2]
[335998689,1724657442121,-167.371446,0.00012729,2]
[335998691,1724657442131,-151.0,0.00012729,2]
[335998693,1724657442141,-151.0,0.00012729,2]
[335998695,1724657442153,-151.0,0.00012738,2]
[335998697,1724657442163,-713.92,0.00012738,2]
[335998699,1724657442173,-500.0,0.00012738,2]
[335998701,1724657442182,-680.83,0.00012738,2]
[335998703,1724657442192,-500.0,0.00012738,2]
[335998705,1724657442202,-500.0,0.00012738,2]
[335998707,1724657442211,-500.0,0.00012738,2]
[335998709,1724657442221,-509.2279497,0.00012738,2]
[335998711,1724657442232,-500.0,0.00012738,2]
[335998713,1724657442242,-500.0,0.00012738,2]
[335998715,1724657442251,-809.92,0.00012738,2]
[335998717,1724657442262,-151.0,0.00012738,2]
[335998719,1724657442272,-151.0,0.00012738,2]
[335998722,1724657442282,-293.33251,0.00012738,2]
[335998724,1724657442295,-293.33251,0.00012738,2]
[335998726,1724657442304,-151.0,0.00012738,2]
[335998728,1724657442315,-151.0,0.00012738,2]
[335998730,1724657442325,-151.0,0.00012738,2]
[335998732,1724657442335,-680.224576,0.00012738,2]
[335998735,1724657442347,-680.224576,0.00012738,2]
[335998737,1724657442359,-2360.207425,0.00012738,2]
[335998739,1724657442369,-2360.207425,0.00012738,2]
[335998741,1724657442379,-424.248062,0.00012738,2]
[335998743,1724657442388,-424.248062,0.00012738,2]
[335998745,1724657442400,-240.802712,0.00012738,2]
[335998747,1724657442410,-500.24,0.00012739,2]
[335998749,1724657442420,-500.0,0.00012739,2]
[335998751,1724657442429,-500.0,0.00012739,2]
[335998753,1724657442438,-500.0,0.00012739,2]
[335998755,1724657442447,-500.0,0.00012739,2]
[335998757,1724657442457,-550.3,0.00012739,2]
[335998759,1724657442466,-500.0,0.00012739,2]
[335998760,1724657442475,-500.0,0.00012739,2]
[335998761,1724657442484,-500.0,0.00012739,2]
[335998762,1724657442494,-545.8,0.00012739,2]
[335998763,1724657442503,-500.0,0.00012739,2]
[335998764,1724657442512,-500.0,0.00012739,2]
[335998765,1724657442522,-229.549891,0.00012739,2]
[335998766,1724657442531,-229.549891,0.00012739,2]
[335998767,1724657442541,-500.0,0.00012739,2]
[335998768,1724657442588,-500.0,0.00012739,2]
[335998770,1724657442597,-507.79,0.00012739,2]
[335998772,1724657442606,-501.99,0.00012739,2]
[335998774,1724657442615,-500.0,0.00012739,2]
[335998776,1724657442625,-500.0,0.00012739,2]
[335998778,1724657442634,-500.0,0.00012739,2]
[335998780,1724657442644,-500.0,0.00012739,2]
[335998782,1724657442653,-500.0,0.00012739,2]
[335998783,1724657442662,-521.96,0.00012739,2]
[335998785,1724657442672,-500.0,0.00012739,2]
[335998787,1724657442681,-151.0,0.00012739,2]
[335998789,1724657442691,-151.0,0.00012739,2]
[335998791,1724657442700,-500.0,0.00012739,2]
[335998794,1724657442711,-500.0,0.00012739,2]
[335998796,1724657442722,-500.0,0.00012739,2]
[335998798,1724657442731,-500.0,0.00012739,2]
[335998800,1724657442742,-500.0,0.00012739,2]
[335998802,1724657442752,-432.9631065,0.00012739,2]
[335998804,1724657442764,-787.12,0.00012739,2]
[335998806,1724657442774,-183.94969575,0.00012739,2]
[335998809,1724657442786,-500.0,0.00012739,2]
[335998811,1724657442800,-151.0,0.00012739,2]
[335998813,1724657442810,-500.0,0.00012739,2]
[335998815,1724657442819,-500.0,0.00012739,2]
[335998817,1724657442829,-500.0,0.00012739,2]
[335998819,1724657442838,-500.0,0.00012739,2]
[335998821,1724657442847,-500.0,0.00012739,2]
[335998824,1724657442857,-333.61633717,0.00012739,2]
[335998826,1724657442866,-518.36395015,0.00012739,2]
[335998828,1724657442877,-500.0,0.00012739,2]
[335998830,1724657442887,-644.16,0.00012739,2]
[335998832,1724657442896,-500.0,0.00012739,2]
[335998834,1724657442906,-500.0,0.00012739,2]
[335998836,1724657442916,-533.91,0.00012739,2]
[335998838,1724657442927,-500.0,0.00012739,2]
[335998840,1724657442938,-500.0,0.00012739,2]
[335998842,1724657442950,-656.01,0.00012739,2]
[335998844,1724657442959,-500.0,0.00012739,2]
[335998846,1724657442967,-500.0,0.00012739,2]
[335998848,1724657442975,-500.0,0.00012739,2]
[335998850,1724657442983,-500.0,0.00012739,2]
[335998852,1724657442991,-500.0,0.00012739,2]
[335998854,1724657443000,-908.02,0.00012739,2]
[335998856,1724657443010,-500.0,0.00012739,2]
[335998858,1724657443020,-500.0,0.00012739,2]
[335998860,1724657443029,-500.0,0.00012739,2]
[335998862,1724657443039,-151.0,0.00012739,2]
[335998864,1724657443048,-882.98,0.00012739,2]
[335998866,1724657443057,-939.96,0.00012739,2]
[335998868,1724657443067,-862.46,0.00012739,2]
[335998870,1724657443077,-171.649858,0.00012739,2]
[335998872,1724657443088,-171.649858,0.00012739,2]
[335998875,1724657443100,-266.155314,0.00012739,2]
[335998877,1724657443110,-266.155314,0.00012739,2]
[335998879,1724657443120,-172.222521,0.00012739,2]
[335998881,1724657443132,-172.222521,0.00012739,2]
[335998883,1724657443142,-929.006949,0.00012739,2]
[335998885,1724657443158,-929.006949,0.00012739,2]
[335998887,1724657443169,-151.0,0.00012739,2]
[335998889,1724657443179,-151.0,0.00012739,2]
[335998892,1724657443189,-1502.814102,0.00012739,2]
[335998894,1724657443199,-1502.814102,0.00012739,2]
[335998896,1724657443210,-151.0,0.00012739,2]
[335998898,1724657443221,-224.70081,0.00012739,2]
[335998900,1724657443233,-224.70081,0.00012739,2]
[335998902,1724657443243,-1970.596315,0.00012739,2]
[335998904,1724657443253,-1970.596315,0.00012739,2]
[335998906,1724657443263,-151.0,0.00012739,2]
[335998908,1724657443272,-2227.449844,0.00012739,2]
[335998910,1724657443282,-371.828926,0.00012739,2]
[335998912,1724657443292,-2227.449844,0.00012739,2]
[335998914,1724657443302,-371.828926,0.00012739,2]
[335998916,1724657443312,-1134.746773,0.00012739,2]
[335998918,1724657443322,-1134.746773,0.00012739,2]
[335998920,1724657443333,-854.443322,0.00012739,2]
[335998923,1724657443343,-388.814781,0.00012739,2]
[335998924,1724657443353,-388.814781,0.00012739,2]
[335998926,1724657443363,-854.443322,0.00012739,2]
[335998928,1724657443373,-151.0,0.00012739,2]
[335998930,1724657443387,-151.0,0.00012739,2]
[335998932,1724657443397,-259.060845,0.00012739,2]
[335998934,1724657443406,-832.943194,0.00012739,2]
[335998936,1724657443415,-259.060845,0.00012739,2]
[335998938,1724657443425,-832.943194,0.00012739,2]
[335998940,1724657443435,-647.952662,0.00012739,2]
[335998943,1724657443447,-647.952662,0.00012739,2]
[335998945,1724657443458,-151.0,0.0001275,2]
[335998947,1724657443469,-500.0,0.0001275,2]
[335998949,1724657443479,-685.15,0.0001275,2]
[335998951,1724657443488,-500.0,0.0001275,2]
[335998953,1724657443498,-500.0,0.0001275,2]
[335998955,1724657443508,-571.8,0.0001275,2]
[335998957,1724657443518,-500.0,0.0001275,2]
[335998959,1724657443527,-500.0,0.0001275,2]
[335998961,1724657443537,-500.0,0.0001275,2]
[335998963,1724657443547,-617.81,0.0001275,2]
[335998965,1724657443557,-561.88,0.0001275,2]
[335998967,1724657443567,-500.0,0.0001275,2]
[335998969,1724657443577,-655.23,0.0001275,2]
[335998971,1724657443587,-500.0,0.0001275,2]
[335998973,1724657443596,-500.0,0.0001275,2]
[335998975,1724657443605,-1107.15,0.0001275,2]
[335998977,1724657443615,-952.65,0.0001275,2]
[335998979,1724657443625,-500.0,0.0001275,2]
[335998982,1724657443635,-229.549891,0.0001275,2]
[335998985,1724657443645,-229.549891,0.0001275,2]
[335998987,1724657443654,-500.0,0.0001275,2]
[335998989,1724657443663,-736.46,0.0001275,2]
[335998991,1724657443673,-544.78,0.0001275,2]
[335998994,1724657443682,-500.0,0.0001275,2]
[335998997,1724657443692,-541.95,0.0001275,2]
[335999000,1724657443701,-201.75,0.0001275,2]
[335999003,1724657443711,-518.56,0.0001275,2]
[335999006,1724657443721,-637.21,0.0001275,2]
[335999009,1724657443730,-500.0,0.0001275,2]
[335999012,1724657443739,-500.0,0.0001275,2]
[335999015,1724657443749,-500.0,0.0001275,2]
[335999018,1724657443759,-514.64,0.0001275,2]
[335999021,1724657443768,-151.0,0.0001275,2]
[335999025,1724657443779,-500.0,0.0001275,2]
[335999027,1724657443788,-500.0,0.0001275,2]
[335999029,1724657443799,-203.443569,0.0001275,2]
[335999031,1724657443809,-500.0,0.0001275,2]
[335999033,1724657443820,-500.0,0.0001275,2]
[335999036,1724657443831,-173.745874,0.0001275,2]
[335999038,1724657443841,-151.0,0.0001275,2]
[335999040,1724657443852,-171.649858,0.0001275,2]
[335999042,1724657443862,-171.649858,0.0001275,2]
[335999044,1724657443872,-266.155314,0.0001275,2]
[335999046,1724657443891,-266.155314,0.0001275,2]
[335999048,1724657443901,-151.0,0.0001275,2]
[335999050,1724657443910,-151.0,0.0001275,2]
[335999052,1724657443920,-172.222521,0.0001275,2]
[335999054,1724657443929,-172.222521,0.0001275,2]
[335999056,1724657443939,-293.33251,0.0001275,2]
[335999057,1724657443948,-293.33251,0.0001275,2]
[335999058,1724657443957,-1720.027753,0.0001275,2]
[335999059,1724657443966,-1720.027753,0.0001275,2]
[335999060,1724657443976,-167.371446,0.0001275,2]
[335999061,1724657443985,-167.371446,0.0001275,2]
[335999062,1724657443995,-151.0,0.0001275,2]
[335999063,1724657444005,-151.0,0.0001275,2]
[335999064,1724657444014,-151.0,0.0001275,2]
[335999065,1724657444024,-151.0,0.0001275,2]
[335999066,1724657444034,-151.0,0.0001275,2]
[335999067,1724657444043,-680.224576,0.0001275,2]
[335999068,1724657444053,-680.224576,0.0001275,2]
[335999069,1724657444062,-2360.207425,0.0001275,2]
[335999070,1724657444073,-2360.207425,0.0001275,2]
[335999071,1724657444083,-424.248062,0.0001275,2]
[335999072,1724657444093,-424.248062,0.0001275,2]
[335999073,1724657444102,-266.72876783,0.00012771,2]
[335999074,1724657444111,-2962.8777925,0.00012771,2]
[335999075,1724657444122,-180.84262416,0.00012779,2]
[335999077,1724657444135,-2284.12528389,0.00012779,3]
[335999078,1724657444146,-155.12257081,0.00012779,2]
[335999079,1724657444159,-1059.92669404,0.0001285,2]
[335999080,1724657444170,-151.0,0.0001285,2]
[335999081,1724657444179,-210.06634187,0.00012886,2]
[335999083,1724657444189,-290.70879956,0.00012898,2]
[335999084,1724657444200,-9292.94979966,0.000129,2]
[335999085,1724657444210,-320.39550302,0.00012934,2]
[335999086,1724657444221,-156.44276743,0.00012934,2]
[335999087,1724657444232,-493.69395889,0.00012971,2]
[335999088,1724657444241,-473.0804863,0.00012971,2]
[335999090,1724657444251,-309.4584508,0.00012971,2]
[335999091,1724657444260,-154.76012181,0.00012999,2]
[335999092,1724657444270,-155.34567641,0.00012999,2]
[335999093,1724657444279,-154.91707256,0.00012999,2]
[335999095,1724657444289,-863.13231421,0.00013,2]
[335999096,1724657444298,-337.0669405,0.00013,2]
[335999097,1724657444308,-500.0,0.00013,2]
[335999098,1724657444316,-500.0,0.00013,2]
[335999099,1724657444326,-150.112233,0.00013,2]
[335999101,1724657444335,-172.054325,0.00013,2]
[335999102,1724657444344,-604.0,0.00013,2]
[335999103,1724657444354,-713.92,0.00013012,2]
[335999104,1724657444363,-500.0,0.00013012,2]
[335999105,1724657444372,-680.83,0.00013012,2]
[335999106,1724657444383,-500.0,0.00013012,2]
[335999107,1724657444392,-500.0,0.00013012,2]
[335999108,1724657444401,-500.0,0.00013012,2]
[335999109,1724657444412,-500.0,0.00013012,2]
[335999111,1724657444424,-500.0,0.00013012,2]
[335999112,1724657444433,-809.92,0.00013012,2]
[335999113,1724657444442,-151.0,0.00013012,2]
[335999114,1724657444452,-151.0,0.00013012,2]
[335999116,1724657444463,-172.222521,0.00013012,2]
[335999117,1724657444473,-172.222521,0.00013012,2]
[335999118,1724657444482,-293.33251,0.00013012,2]
[335999119,1724657444492,-293.33251,0.00013012,2]
[335999120,1724657444501,-929.006949,0.00013012,2]
[335999122,1724657444513,-929.006949,0.00013012,2]
[335999123,1724657444524,-151.0,0.00013012,2]
[335999124,1724657444535,-151.0,0.00013012,2]
[335999125,1724657444547,-1502.814102,0.00013012,2]
[335999127,1724657444560,-1502.814102,0.00013012,2]
[335999128,1724657444570,-224.70081,0.00013012,2]
[335999129,1724657444579,-224.70081,0.00013012,2]
[335999130,1724657444590,-500.24,0.00013013,2]
[335999132,1724657444600,-500.0,0.00013013,2]
[335999133,1724657444611,-500.0,0.00013013,2]
[335999134,1724657444621,-500.0,0.00013013,2]
[335999135,1724657444631,-500.0,0.00013013,2]
[335999136,1724657444640,-550.3,0.00013013,2]
[335999138,1724657444652,-500.0,0.00013013,2]
[335999139,1724657444663,-500.0,0.00013013,2]
[335999140,1724657444672,-500.0,0.00013013,2]
[335999141,1724657444681,-545.8,0.00013013,2]
[335999143,1724657444693,-500.0,0.00013013,2]
[335999144,1724657444704,-500.0,0.00013013,2]
[335999145,1724657444712,-229.549891,0.00013013,2]
[335999146,1724657444722,-229.549891,0.00013013,2]
[335999148,1724657444731,-500.0,0.00013013,2]
[335999149,1724657444742,-500.0,0.00013013,2]
[335999150,1724657444752,-507.79,0.00013013,2]
[335999151,1724657444761,-501.99,0.00013013,2]
[335999152,1724657444770,-500.0,0.00013013,2]
[335999154,1724657444778,-500.0,0.00013013,2]
[335999155,1724657444788,-500.0,0.00013013,2]
[335999156,1724657444797,-500.0,0.00013013,2]
[335999157,1724657444806,-500.0,0.00013013,2]
[335999158,1724657444815,-521.96,0.00013013,2]
[335999160,1724657444825,-500.0,0.00013013,2]
[335999161,1724657444834,-266.42702,0.00013013,2]
[335999162,1724657444842,-500.0,0.00013013,2]
[335999163,1724657444852,-500.0,0.00013013,2]
[335999165,1724657444861,-500.0,0.00013013,2]
[335999166,1724657444871,-500.0,0.00013013,2]
[335999167,1724657444882,-500.0,0.00013013,2]
[335999168,1724657444891,-787.12,0.00013013,2]
[335999170,1724657444901,-500.0,0.00013013,2]
[335999171,1724657444911,-303.36015944,0.00013013,2]
[335999172,1724657444921,-500.0,0.00013013,2]
[335999173,1724657444930,-500.0,0.00013013,2]
[335999175,1724657444941,-500.0,0.00013013,2]
[335999176,1724657444951,-500.0,0.00013013,2]
[335999177,1724657444963,-500.0,0.00013013,2]
[335999178,1724657444974,-644.16,0.00013013,2]
[335999179,1724657444983,-500.0,0.00013013,2]
[335999181,1724657444993,-500.0,0.00013013,2]
[335999182,1724657445003,-533.91,0.00013013,2]
[335999183,1724657445011,-500.0,0.00013013,2]
[335999184,1724657445021,-526.03835976,0.00013013,2]
[335999186,1724657445031,-656.01,0.00013013,2]
[335999187,1724657445040,-500.0,0.00013013,2]
[335999188,1724657445050,-533.99698326,0.00013013,2]
[335999189,1724657445059,-500.0,0.00013013,2]
[335999190,1724657445068,-342.97938714,0.00013013,2]
[335999191,1724657445077,-500.0,0.00013013,2]
[335999193,1724657445086,-908.02,0.00013013,2]
[335999194,1724657445096,-500.0,0.00013013,2]
[335999195,1724657445106,-500.0,0.00013013,2]
[335999196,1724657445115,-368.56981019,0.00013013,2]
[335999198,1724657445125,-151.0,0.00013013,2]
[335999200,1724657445137,-882.98,0.00013013,2]
[335999202,1724657445146,-939.96,0.00013013,2]
[335999204,1724657445159,-862.46,0.00013013,2]
[335999205,1724657445168,-171.649858,0.00013013,2]
[335999206,1724657445177,-171.649858,0.00013013,2]
[335999207,1724657445187,-266.155314,0.00013013,2]
[335999208,1724657445196,-266.155314,0.00013013,2]
[335999210,1724657445206,-1720.027753,0.00013013,2]
[335999212,1724657445215,-1720.027753,0.00013013,2]
[335999213,1724657445224,-167.371446,0.00013013,2]
[335999214,1724657445235,-167.371446,0.00013013,2]
[335999215,1724657445245,-151.0,0.00013013,2]
[335999216,1724657445255,-151.0,0.00013013,2]
[335999218,1724657445264,-151.0,0.00013013,2]
[335999219,1724657445274,-151.0,0.00013013,2]
[335999221,1724657445283,-151.0,0.00013013,2]
[335999222,1724657445292,-680.224576,0.00013013,2]
[335999223,1724657445302,-680.224576,0.00013013,2]
[335999224,1724657445311,-2360.207425,0.00013013,2]
[335999225,1724657445320,-2360.207425,0.00013013,2]
[335999227,1724657445330,-424.248062,0.00013013,2]
[335999228,1724657445339,-424.248062,0.00013013,2]
[335999229,1724657445348,-151.0,0.00013013,2]
[335999230,1724657445357,-1970.596315,0.00013013,2]
[335999231,1724657445366,-1970.596315,0.00013013,2]
[335999233,1724657445375,-151.0,0.00013013,2]
[335999235,1724657445386,-2227.449844,0.00013013,2]